bitfinex/quotes_BTCUSD_20230901
["timestamp","ask_amount","ask_price","bid_price","bid_amount"]
[1693579567733,1.13294849,25844.0,25843.0,0.019998]
[1693579567937,1.24408849,25844.0,25843.0,0.019998]
[1693579568172,0.74247678,25844.0,25843.0,0.019998]
[1693579568388,0.33324411,25844.0,25843.0,0.019998]
[1693579568613,0.33324411,25844.0,25843.0,0.022998]
[1693579568821,0.33324411,25844.0,25843.0,0.019998]
[1693579569026,0.33324411,25844.0,25843.0,0.022998]
[1693579569245,0.36455,25844.0,25843.0,0.025998]
[1693579569484,0.32941,25844.0,25843.0,0.019998]
[1693579569692,0.23199,25844.0,25843.0,0.026998]
[1693579569921,1.12477678,25844.0,25843.0,0.026998]
[1693579570135,1.19347678,25844.0,25843.0,0.022998]
[1693579570355,1.54009678,25844.0,25843.0,0.022998]
[1693579570561,0.5657,25842.0,25837.0,0.019998]
[1693579570805,0.1196,25839.0,25837.0,0.019998]
[1693579571013,0.11999,25839.0,25837.0,0.019998]
[1693579571229,0.19367,25839.0,25837.0,0.019998]
[1693579571435,0.73412246,25839.0,25837.0,0.019998]
[1693579571642,1.02085678,25839.0,25837.0,0.019998]
[1693579571848,1.00963678,25839.0,25837.0,0.019998]
[1693579572071,0.94077678,25839.0,25838.0,0.051998]
[1693579572286,1.03401678,25839.0,25838.0,0.071996]
[1693579572498,1.21344849,25839.0,25838.0,0.071996]
[1693579572712,1.21344849,25839.0,25838.0,0.051998]
[1693579572713,1.99823163,25839.0,25838.0,0.051998]
[1693579572929,1.98071163,25839.0,25838.0,0.051998]
[1693579573132,1.69515163,25839.0,25838.0,0.051998]
[1693579573357,1.87971163,25839.0,25838.0,0.051998]
[1693579573586,0.12,25837.0,25834.0,0.051998]
[1693579573799,0.5253,25835.0,25832.0,0.01989699]
[1693579574015,0.1196,25833.0,25832.0,0.01989699]
[1693579574232,0.11999,25833.0,25832.0,0.01989699]
[1693579574441,0.11999,25833.0,25826.0,0.13643124]
[1693579574442,0.07429099,25831.0,25826.0,0.13643124]
[1693579574687,0.07429099,25831.0,25828.0,0.21385923]
[1693579574688,0.08017171,25830.0,25828.0,0.21385923]
[1693579574909,0.00039,25830.0,25829.0,0.38708678]
[1693579575551,0.00039,25830.0,25829.0,0.50668678]
[1693579575760,0.00039,25830.0,25829.0,0.92628678]
[1693579575977,0.05429099,25833.0,25829.0,0.98628678]
[1693579576181,0.07429099,25834.0,25832.0,0.1196]
[1693579576401,0.07429099,25838.0,25833.0,0.66152149]
[1693579576605,0.07429099,25841.0,25833.0,0.6276305]
[1693579576812,0.05429099,25841.0,25838.0,0.1196]
[1693579577019,0.05429099,25841.0,25839.0,0.15483471]
[1693579577241,0.07429099,25840.0,25838.0,0.1196]
[1693579577454,0.07429099,25842.0,25838.0,0.50668678]
[1693579577663,0.2779,25845.0,25838.0,0.54192149]
[1693579577664,0.07429099,25840.0,25838.0,0.54192149]
[1693579577862,0.07429099,25840.0,25838.0,0.38708678]
[1693579578078,0.05429099,25839.0,25838.0,0.38708678]
[1693579578510,0.005,25841.0,25838.0,0.38708678]
[1693579578721,0.07429099,25843.0,25840.0,0.1196]
[1693579578929,0.004,25842.0,25840.0,0.66152149]
[1693579579138,0.004,25842.0,25840.0,0.66153478]
[1693579579348,0.004,25842.0,25841.0,0.50668678]
[1693579579563,0.004,25842.0,25841.0,0.38708678]
[1693579580411,0.05429099,25842.0,25841.0,0.38708678]
[1693579580629,0.07429099,25843.0,25841.0,0.50668678]
[1693579580860,0.07429099,25843.0,25842.0,0.1196]
[1693579581141,0.07429099,25844.0,25842.0,0.15216632]
[1693579581379,0.07429099,25843.0,25842.0,0.5392531]
[1693579581593,0.1196,25847.0,25842.0,0.5392531]
[1693579581800,0.07429099,25843.0,25840.0,0.174848]
[1693579582014,0.34648264,25843.0,25840.0,0.154848]
[1693579582222,0.07429099,25843.0,25841.0,0.38708678]
[1693579582429,0.07429099,25843.0,25842.0,0.1830505]
[1693579582837,0.07829099,25844.0,25842.0,0.1820505]
[1693579583272,0.001,25843.0,25842.0,0.56913728]
[1693579583471,0.004,25844.0,25842.0,0.56913728]
[1693579583675,0.02,25844.0,25843.0,0.05648843]
[1693579584498,0.02,25844.0,25842.0,0.39408678]
[1693579584715,0.08070093,25843.0,25842.0,0.007]
[1693579584940,0.15499192,25843.0,25842.0,0.007]
[1693579585374,0.07429099,25841.0,25840.0,0.154848]
[1693579586417,0.14797851,25841.0,25840.0,0.154848]
[1693579586843,0.16220484,25841.0,25840.0,0.161848]
[1693579587053,0.07429099,25841.0,25840.0,0.154848]
[1693579587683,0.31483099,25841.0,25840.0,0.154848]
[1693579587898,0.32260362,25841.0,25840.0,0.154848]
[1693579588112,0.16270362,25841.0,25840.0,0.154848]
[1693579588326,0.16570362,25841.0,25840.0,0.154848]
[1693579588540,0.07729099,25841.0,25840.0,0.154848]
[1693579588969,0.16970418,25841.0,25840.0,0.154848]
[1693579589174,0.07729099,25841.0,25840.0,0.154848]
[1693579589382,0.16344338,25841.0,25840.0,0.161848]
[1693579590641,0.07829099,25841.0,25840.0,0.161848]
[1693579590854,1.05097777,25841.0,25840.0,0.161848]
[1693579591073,1.44458755,25841.0,25840.0,0.161848]
[1693579591292,1.44458755,25841.0,25840.0,0.007]
[1693579591293,1.64498755,25841.0,25840.0,0.007]
[1693579591518,0.02,25832.0,25826.0,0.02]
[1693579591731,0.02,25832.0,25826.0,0.08570901]
[1693579591732,0.08017171,25831.0,25826.0,0.08570901]
[1693579591944,0.08017171,25831.0,25827.0,0.10570901]
[1693579592159,0.08017171,25831.0,25827.0,0.30533961]
[1693579592598,0.08017171,25831.0,25828.0,0.38708678]
[1693579592815,0.02,25832.0,25828.0,0.38708678]
[1693579593025,0.001,25831.0,25828.0,0.38708678]
[1693579593447,0.02,25832.0,25828.0,0.38708678]
[1693579593725,0.001,25831.0,25828.0,0.38708678]
[1693579593931,0.1594627,25832.0,25827.0,0.26007065]
[1693579594120,0.09289727,25831.0,25828.0,0.3466961]
[1693579594331,0.09589727,25831.0,25828.0,0.0466961]
[1693579594535,0.17518826,25831.0,25828.0,0.0466961]
[1693579594744,0.17218826,25831.0,25828.0,0.0466961]
[1693579595178,0.17218826,25831.0,25828.0,0.0366961]
[1693579595179,0.17518826,25831.0,25828.0,0.0366961]
[1693579595384,0.17618826,25831.0,25828.0,0.3203885]
[1693579595591,0.17518826,25831.0,25828.0,0.3143885]
[1693579596031,0.012,25831.0,25830.0,0.1599]
[1693579596270,0.012,25831.0,25830.0,0.38708678]
[1693579596478,0.009,25831.0,25830.0,0.54698678]
[1693579596693,0.02,25833.0,25830.0,0.71940048]
[1693579596902,0.02,25833.0,25830.0,0.55950048]
[1693579597140,0.004,25831.0,25830.0,0.55950048]
[1693579597349,0.004,25831.0,25830.0,0.54698678]
[1693579597566,0.009,25831.0,25830.0,0.54698678]
[1693579597978,0.013,25831.0,25830.0,0.54698678]
[1693579598423,0.07929099,25837.0,25832.0,0.08070901]
[1693579598646,0.07929099,25837.0,25834.0,0.1599]
[1693579598877,0.07929099,25837.0,25835.0,0.38708678]
[1693579599298,0.07929099,25837.0,25836.0,0.17548208]
[1693579599729,0.08129099,25837.0,25836.0,0.17548208]
[1693579600235,0.07929099,25837.0,25835.0,0.38708678]
[1693579600478,0.08819208,25836.0,25835.0,0.031]
[1693579600689,0.16748307,25836.0,25831.0,0.08070901]
[1693579600899,0.33727171,25835.0,25832.0,0.38708678]
[1693579601122,0.33727171,25835.0,25831.0,0.38070901]
[1693579601123,0.33727171,25835.0,25831.0,0.3]
[1693579601336,0.33727171,25835.0,25828.0,0.03052866]
[1693579601337,0.07929099,25832.0,25828.0,0.03052866]
[1693579601553,0.33727171,25831.0,25828.0,0.41761544]
[1693579601762,0.33727171,25831.0,25827.0,0.06]
[1693579601971,0.33727171,25831.0,25828.0,0.15412675]
[1693579602180,0.2571,25831.0,25828.0,0.15412675]
[1693579602387,0.2571,25831.0,25827.0,0.46779579]
[1693579602598,0.2571,25831.0,25828.0,0.15931592]
[1693579603017,0.2571,25831.0,25828.0,0.15731592]
[1693579603018,0.33639099,25831.0,25828.0,0.15731592]
[1693579603225,0.33639099,25831.0,25828.0,0.33223192]
[1693579603226,0.07929099,25830.0,25828.0,0.33223192]
[1693579603641,0.15440917,25830.0,25828.0,0.174916]
[1693579604057,0.15440917,25830.0,25828.0,0.23250998]
[1693579604478,0.15840917,25830.0,25828.0,0.23250998]
[1693579605106,0.15840917,25830.0,25828.0,0.21280298]
[1693579605310,0.15840917,25830.0,25828.0,0.154916]
[1693579605520,0.16240917,25830.0,25828.0,0.185916]
[1693579605724,0.08729099,25830.0,25829.0,0.04129208]
[1693579606146,0.07929099,25829.0,25828.0,0.031]
[1693579606357,0.045,25825.0,25824.0,0.019998]
[1693579606573,0.12517171,25825.0,25824.0,0.019998]
[1693579606781,0.045,25825.0,25824.0,0.019998]
[1693579607400,0.12416188,25825.0,25824.0,0.019998]
[1693579608237,1.22242321,25825.0,25824.0,0.019998]
[1693579608452,0.11226,25825.0,25824.0,0.019998]
[1693579608667,0.045,25825.0,25824.0,0.18228476]
[1693579608875,0.049,25825.0,25824.0,0.21028476]
[1693579609086,0.049,25825.0,25824.0,0.43508478]
[1693579609087,0.004,25825.0,25824.0,0.43508478]
[1693579609295,0.028,25825.0,25824.0,0.43708478]
[1693579609516,0.028,25825.0,25824.0,0.63191949]
[1693579609727,0.024,25825.0,25824.0,0.93698478]
[1693579609933,0.041,25825.0,25824.0,0.91698478]
[1693579610144,0.017,25825.0,25824.0,1.05828713]
[1693579610381,0.017,25825.0,25824.0,0.90698478]
[1693579610596,0.006,25825.0,25824.0,1.06291778]
[1693579610803,0.01,25825.0,25824.0,1.2555219]
[1693579611014,0.01,25825.0,25824.0,1.0956219]
[1693579611218,0.01,25825.0,25824.0,0.36853512]
[1693579611450,0.01,25825.0,25824.0,0.32000489]
[1693579611664,0.01,25825.0,25824.0,0.56301778]
[1693579611868,0.004,25825.0,25824.0,0.56201778]
[1693579612078,0.008,25825.0,25824.0,0.202931]
[1693579612288,0.004,25825.0,25824.0,0.40572973]
[1693579612496,0.049,25825.0,25824.0,0.37772973]
[1693579612735,0.05,25825.0,25824.0,0.38572973]
[1693579612949,0.046,25825.0,25824.0,0.38572973]
[1693579613155,0.045,25825.0,25824.0,0.37772973]
[1693579613362,0.05,25825.0,25824.0,0.39872973]
[1693579613774,0.05,25825.0,25824.0,0.174931]
[1693579613775,0.045,25825.0,25824.0,0.174931]
[1693579613995,0.30934914,25825.0,25824.0,0.154933]
[1693579614208,0.30934914,25825.0,25823.0,0.019998]
[1693579614209,0.31234914,25825.0,25823.0,0.019998]
[1693579614418,0.045,25824.0,25823.0,0.019998]
[1693579614654,0.01432,25824.0,25823.0,0.21731405]
[1693579615322,0.01432,25824.0,25823.0,0.174974]
[1693579615542,0.10795954,25824.0,25823.0,0.174974]
[1693579615750,0.01432,25824.0,25823.0,0.174974]
[1693579615951,0.01432,25824.0,25823.0,0.34207682]
[1693579616165,0.01432,25824.0,25823.0,0.34407682]
[1693579616374,0.03432,25824.0,25823.0,0.34407682]
[1693579616585,0.04432,25824.0,25823.0,0.34207682]
[1693579616796,0.06432,25824.0,25823.0,0.34407682]
[1693579617001,0.02,25824.0,25823.0,0.176974]
[1693579617210,0.02,25824.0,25823.0,0.72396078]
[1693579617418,0.023,25824.0,25823.0,1.02396078]
[1693579617826,0.04861099,25828.0,25823.0,1.02396078]
[1693579618031,0.04861099,25828.0,25825.0,0.1599]
[1693579618234,0.04861099,25828.0,25826.0,0.38708678]
[1693579619365,0.08561099,25828.0,25826.0,0.38708678]
[1693579619567,0.04861099,25828.0,25826.0,0.38708678]
[1693579619769,0.04961099,25828.0,25826.0,0.39808678]
[1693579619970,0.04861099,25828.0,25826.0,0.38708678]
[1693579620180,0.04861099,25828.0,25827.0,0.16121108]
[1693579620409,0.08461099,25828.0,25827.0,0.38708678]
[1693579620821,0.04861099,25828.0,25827.0,0.38708678]
[1693579621033,0.04861099,25828.0,25827.0,0.57797004]
[1693579621399,0.04861099,25828.0,25827.0,0.38708678]
[1693579621580,0.05261099,25828.0,25827.0,0.38708678]
[1693579622013,0.04629099,25828.0,25827.0,0.38708678]
[1693579622211,0.004,25828.0,25827.0,0.54698678]
[1693579622434,0.004,25828.0,25827.0,0.74708678]
[1693579622643,0.007,25828.0,25827.0,0.78408678]
[1693579623277,0.003,25828.0,25827.0,1.02398678]
[1693579623530,0.04861099,25831.0,25827.0,1.02398678]
[1693579623734,0.04861099,25831.0,25827.0,0.78803812]
[1693579623735,0.004,25828.0,25827.0,0.78803812]
[1693579623938,0.004,25828.0,25827.0,0.63320341]
[1693579624289,0.03929099,25831.0,25827.0,0.63320341]
[1693579624703,0.04861099,25831.0,25828.0,0.19151491]
[1693579624908,0.04861099,25831.0,25829.0,0.38708678]
[1693579625112,0.05061099,25831.0,25830.0,0.16830255]
[1693579625319,0.05161099,25831.0,25830.0,0.55538933]
[1693579625559,0.05061099,25831.0,25830.0,0.55538933]
[1693579625766,0.05161099,25831.0,25830.0,0.55538933]
[1693579626171,0.05061099,25831.0,25830.0,0.55538933]
[1693579626385,0.04961099,25831.0,25830.0,0.16830255]
[1693579626800,0.05161099,25831.0,25830.0,0.16830255]
[1693579627212,0.04961099,25831.0,25830.0,0.16830255]
[1693579627409,0.05161099,25831.0,25830.0,0.16830255]
[1693579628022,0.04961099,25831.0,25830.0,0.38708678]
[1693579628229,0.05261099,25831.0,25830.0,0.38708678]
[1693579628638,0.13329992,25831.0,25830.0,0.025]
[1693579628846,0.13329992,25831.0,25827.0,0.35630341]
[1693579628847,0.13129992,25831.0,25827.0,0.35630341]
[1693579629051,0.2637,25830.0,25828.0,0.38708678]
[1693579629896,0.05461099,25831.0,25830.0,0.16452437]
[1693579630101,0.05261099,25831.0,25830.0,0.56912341]
[1693579630313,0.04861099,25831.0,25830.0,0.56912341]
[1693579631388,0.001,25830.0,25827.0,0.35630341]
[1693579631594,0.14622744,25831.0,25828.0,0.38708678]
[1693579632040,0.05461099,25831.0,25830.0,0.025]
[1693579632240,0.13877339,25831.0,25828.0,0.38708678]
[1693579632448,0.03929099,25830.0,25827.0,0.29630341]
[1693579632648,0.03929099,25827.0,25823.0,0.20563178]
[1693579632859,0.01432,25825.0,25823.0,0.56206078]
[1693579633056,0.09449171,25825.0,25824.0,0.17138188]
[1693579633277,0.01432,25825.0,25824.0,0.17138188]
[1693579634471,0.11140771,25825.0,25823.0,0.174974]
[1693579634675,0.09308185,25824.0,25823.0,0.174974]
[1693579635497,0.09308185,25824.0,25823.0,0.211974]
[1693579635697,0.09308185,25824.0,25823.0,0.174974]
[1693579635902,0.002,25824.0,25823.0,0.199974]
[1693579637305,0.006,25824.0,25823.0,0.199974]
[1693579637706,0.11215845,25824.0,25823.0,0.199974]
[1693579638178,0.11015845,25824.0,25823.0,0.174974]
[1693579638546,0.11315845,25824.0,25823.0,0.211974]
[1693579638949,0.11286891,25824.0,25823.0,0.211974]
[1693579639191,0.11686891,25824.0,25823.0,0.211974]
[1693579640645,0.09803089,25824.0,25823.0,0.211974]
[1693579641154,0.09803089,25824.0,25823.0,0.056998]
[1693579641678,0.02132,25824.0,25823.0,0.056998]
[1693579642304,0.02132,25824.0,25823.0,0.59579546]
[1693579642703,0.03929099,25826.0,25823.0,0.81386549]
[1693579642907,0.03929099,25826.0,25825.0,0.2399]
[1693579643148,0.03929099,25826.0,25825.0,0.38708678]
[1693579643690,0.03929099,25826.0,25825.0,0.55472675]
[1693579643897,0.04029099,25826.0,25825.0,0.38708678]
[1693579644030,0.001,25826.0,25825.0,0.38708678]
[1693579644234,0.32161099,25830.0,25825.0,0.74708678]
[1693579644438,0.03929099,25829.0,25826.0,0.90192149]
[1693579644652,0.03929099,25829.0,25826.0,0.74708678]
[1693579645442,0.04729099,25830.0,25826.0,0.74708678]
[1693579645697,0.00932,25831.0,25828.0,0.2399]
[1693579645918,0.04861099,25831.0,25830.0,0.2399]
[1693579646123,0.04861099,25831.0,25830.0,0.57699596]
[1693579646327,0.04861099,25831.0,25830.0,0.57660896]
[1693579646539,0.03929099,25830.0,25827.0,0.06]
[1693579646740,0.03929099,25830.0,25828.0,0.38708678]
[1693579646741,0.30209099,25830.0,25828.0,0.38708678]
[1693579647955,0.30409099,25830.0,25828.0,0.38708678]
[1693579648147,0.30409099,25830.0,25826.0,0.49]
[1693579648148,0.03929099,25829.0,25826.0,0.52]
[1693579648400,0.1194627,25829.0,25826.0,0.84708678]
[1693579648606,0.03929099,25829.0,25828.0,0.017]
[1693579648775,0.03929099,25829.0,25826.0,0.90708678]
[1693579648973,0.03929099,25829.0,25826.0,0.87743236]
[1693579649183,0.1287827,25829.0,25828.0,0.062]
[1693579649392,0.1287827,25829.0,25828.0,0.032]
[1693579649393,0.15191033,25829.0,25828.0,0.032]
[1693579649795,0.05061099,25829.0,25828.0,0.03]
[1693579650171,0.05361099,25829.0,25828.0,0.17734151]
[1693579650872,0.005,25829.0,25828.0,0.74099934]
[1693579651072,0.005,25829.0,25828.0,0.87708678]
[1693579651277,0.003,25829.0,25828.0,0.84708678]
[1693579651501,0.004,25829.0,25828.0,1.03843448]
[1693579651717,0.004,25829.0,25828.0,0.86408678]
[1693579651937,0.003,25829.0,25828.0,1.04774874]
[1693579652167,0.005,25829.0,25828.0,1.07774874]
[1693579652368,0.005,25829.0,25828.0,0.71708678]
[1693579652577,0.04861099,25832.0,25829.0,0.06]
[1693579652782,0.04861099,25832.0,25831.0,0.16]
[1693579652987,0.04861099,25832.0,25831.0,0.54708678]
[1693579653858,0.04861099,25832.0,25829.0,0.39249897]
[1693579654064,0.05561099,25832.0,25831.0,0.001]
[1693579654695,0.06361099,25832.0,25831.0,0.001]
[1693579655103,0.05561099,25832.0,25831.0,0.001]
[1693579655306,0.05561099,25832.0,25826.0,0.03039432]
[1693579655307,0.04861099,25828.0,25826.0,0.03039432]
[1693579655520,0.04861099,25827.0,25826.0,0.03039432]
[1693579655730,0.03929099,25826.0,25823.0,0.11092034]
[1693579655959,0.3671627,25826.0,25824.0,0.38708678]
[1693579656150,0.28699099,25826.0,25824.0,0.38208678]
[1693579656557,0.28699099,25826.0,25824.0,0.53702378]
[1693579657408,0.29060863,25826.0,25824.0,0.72596385]
[1693579657610,0.29060863,25826.0,25825.0,0.07915278]
[1693579657821,0.29060863,25826.0,25825.0,0.46623956]
[1693579658023,0.29260863,25826.0,25825.0,0.46623956]
[1693579658433,0.28860863,25826.0,25825.0,0.46623956]
[1693579658817,0.28660863,25826.0,25825.0,0.46623956]
[1693579659179,0.28860863,25826.0,25825.0,0.50323956]
[1693579659787,0.29260863,25826.0,25825.0,0.53823956]
[1693579660412,0.29260863,25826.0,25825.0,0.45908678]
[1693579660875,0.04490863,25826.0,25825.0,0.63845876]
[1693579661466,0.04490863,25826.0,25825.0,0.45908678]
[1693579661666,0.04490863,25826.0,25825.0,0.60666428]
[1693579662775,0.12781702,25826.0,25825.0,0.45908678]
[1693579663202,0.13713702,25826.0,25825.0,0.072]
[1693579663450,0.05422863,25826.0,25825.0,0.072]
[1693579663663,0.14173689,25826.0,25825.0,0.072]
[1693579664075,0.05422863,25826.0,25825.0,0.072]
[1693579664291,0.13958078,25826.0,25825.0,0.072]
[1693579664739,0.05422863,25826.0,25825.0,0.072]
[1693579665167,0.13982044,25826.0,25825.0,0.072]
[1693579666049,0.13982044,25826.0,25825.0,0.070861]
[1693579666274,0.13582044,25826.0,25825.0,0.035861]
[1693579666691,0.14282044,25826.0,25825.0,0.036861]
[1693579667100,0.13382044,25826.0,25824.0,0.154937]
[1693579667321,0.11228646,25825.0,25824.0,0.154937]
[1693579668556,0.01632,25825.0,25824.0,0.185937]
[1693579669233,0.11638791,25825.0,25824.0,0.185937]
[1693579670080,0.11438791,25825.0,25824.0,0.154937]
[1693579670276,0.11838791,25825.0,25824.0,0.186937]
[1693579670500,0.12038791,25825.0,25824.0,0.217937]
[1693579670724,0.12038791,25825.0,25824.0,0.186937]
[1693579670725,0.11838791,25825.0,25824.0,0.186937]
[1693579670940,0.12038791,25825.0,25824.0,0.217937]
[1693579671189,0.02032,25825.0,25824.0,0.217937]
[1693579671638,0.02032,25825.0,25824.0,0.063]
[1693579671639,0.61830678,25825.0,25824.0,0.063]
[1693579671857,0.83198678,25825.0,25824.0,0.063]
[1693579672063,1.23960678,25825.0,25824.0,0.063]
[1693579672287,0.005,25818.0,25816.0,0.07806931]
[1693579672515,0.01432,25812.0,25811.0,0.11280677]
[1693579672735,1.04727849,25812.0,25811.0,0.019998]
[1693579672951,1.54247849,25812.0,25811.0,0.019998]
[1693579673159,0.00932,25802.0,25801.0,0.12708523]
[1693579673395,0.08949171,25802.0,25801.0,0.21390264]
[1693579673627,0.51502,25801.0,25800.0,0.00346]
[1693579673838,0.06932,25796.0,25795.0,0.13912325]
[1693579674058,0.06932,25796.0,25789.0,0.10770177]
[1693579674059,0.005,25793.0,25792.0,0.13912325]
[1693579674288,0.53657849,25793.0,25792.0,0.13881064]
[1693579674505,0.53657849,25793.0,25789.0,0.03987391]
[1693579674506,0.00932,25791.0,25789.0,0.0019626]
[1693579674712,0.1503,25799.0,25790.0,0.2668931]
[1693579674931,0.02432,25794.0,25789.0,0.25081747]
[1693579675142,0.1703,25799.0,25787.0,0.03568]
[1693579675143,0.00432,25792.0,25787.0,0.03568]
[1693579675376,0.00432,25789.0,25785.0,0.13881064]
[1693579675591,0.08017171,25788.0,25785.0,0.38708678]
[1693579675807,0.07535913,25788.0,25786.0,0.38708678]
[1693579676019,0.00432,25795.0,25787.0,0.30187137]
[1693579676321,0.1503,25799.0,25790.0,0.46885815]
[1693579676322,0.00432,25798.0,25790.0,0.46885815]
[1693579676414,0.00432,25797.0,25794.0,0.2401]
[1693579676653,0.00432,25803.0,25795.0,0.62369286]
[1693579676875,0.02,25809.0,25800.0,0.03568]
[1693579676876,0.00432,25806.0,25800.0,0.03568]
[1693579677138,0.02,25811.0,25804.0,0.03568]
[1693579677139,0.00432,25810.0,25804.0,0.03568]
[1693579677391,0.00432,25808.0,25805.0,0.54192149]
[1693579677896,0.00432,25808.0,25806.0,0.15483471]
[1693579678101,0.00432,25808.0,25806.0,0.35818608]
[1693579678320,0.8176,25813.0,25806.0,0.19847981]
[1693579678321,0.00432,25810.0,25806.0,0.19847981]
[1693579678536,0.00432,25808.0,25806.0,0.15522723]
[1693579678755,0.00432,25808.0,25806.0,0.26388497]
[1693579678975,0.00432,25808.0,25806.0,0.00039252]
[1693579679396,0.00432,25808.0,25806.0,0.3874793]
[1693579679610,0.01932,25808.0,25807.0,0.38708678]
[1693579679821,0.00432,25808.0,25806.0,0.43209337]
[1693579680057,0.00432,25808.0,25806.0,0.81918015]
[1693579680268,0.00432,25808.0,25806.0,0.43509337]
[1693579680269,0.03932,25808.0,25806.0,0.43509337]
[1693579680499,0.02432,25807.0,25806.0,0.15519252]
[1693579680711,0.02432,25807.0,25806.0,0.15219252]
[1693579680712,0.06432,25807.0,25806.0,0.15219252]
[1693579680927,0.06832,25808.0,25806.0,0.17119252]
[1693579681141,0.00632,25808.0,25807.0,0.25916571]
[1693579681381,0.06732,25808.0,25807.0,0.25955823]
[1693579681591,0.06532,25808.0,25807.0,0.00039252]
[1693579681816,0.45240678,25808.0,25807.0,0.00039252]
[1693579682028,0.88659508,25808.0,25807.0,0.00039252]
[1693579682241,0.06532,25808.0,25807.0,0.19742545]
[1693579682706,0.45140678,25808.0,25807.0,0.00039252]
[1693579682917,0.95348678,25808.0,25807.0,0.00039252]
[1693579683141,1.34978342,25808.0,25807.0,0.00039252]
[1693579683350,1.40744678,25808.0,25807.0,0.00239252]
[1693579683559,2.12413343,25808.0,25807.0,0.00339252]
[1693579683767,2.20105343,25808.0,25807.0,0.00100001]
[1693579684019,1.21390678,25808.0,25807.0,0.00100001]
[1693579684241,0.04432,25800.0,25796.0,0.2401]
[1693579684462,0.07535913,25799.0,25797.0,0.38708678]
[1693579684676,0.07535913,25799.0,25795.0,0.2612]
[1693579684891,0.07535913,25799.0,25795.0,0.64828678]
[1693579685302,0.04432,25800.0,25796.0,0.68708678]
[1693579685510,0.04432,25802.0,25796.0,0.86192149]
[1693579685726,0.04432,25804.0,25800.0,0.2401]
[1693579685933,0.1977,25810.0,25801.0,0.84192149]
[1693579685934,0.04432,25806.0,25801.0,0.84192149]
[1693579686148,0.04432,25804.0,25801.0,0.84192149]
[1693579686358,0.04432,25804.0,25801.0,0.68708678]
[1693579687017,0.03232,25804.0,25801.0,0.68708678]
[1693579687223,0.04432,25806.0,25801.0,0.68708678]
[1693579687452,0.015,25804.0,25801.0,0.99798449]
[1693579687680,0.031,25804.0,25802.0,0.2401]
[1693579687926,0.016,25804.0,25803.0,0.68708678]
[1693579688144,0.04432,25806.0,25803.0,0.68708678]
[1693579688390,0.002,25804.0,25803.0,0.68708678]
[1693579689677,0.001,25804.0,25803.0,0.68708678]
[1693579689889,0.002,25804.0,25803.0,0.68708678]
[1693579690312,0.003,25804.0,25803.0,0.69808678]
[1693579690556,0.001,25804.0,25803.0,0.69808678]
[1693579690987,0.001,25804.0,25803.0,0.86192149]
[1693579691206,0.04,25808.0,25803.0,0.70708678]
[1693579691207,0.00432,25808.0,25803.0,0.70708678]
[1693579691422,0.00432,25808.0,25805.0,0.2401]
[1693579691634,0.00432,25808.0,25806.0,0.68708678]
[1693579692096,0.00432,25808.0,25806.0,0.3]
[1693579692316,0.00432,25808.0,25806.0,0.68708678]
[1693579692529,0.03432,25808.0,25806.0,0.68708678]
[1693579692748,0.00432,25808.0,25806.0,0.3]
[1693579693183,0.01032,25808.0,25805.0,0.3]
[1693579693405,0.04893742,25806.0,25803.0,0.008]
[1693579693618,0.04893742,25806.0,25803.0,0.3]
[1693579693619,0.00432,25805.0,25803.0,0.3]
[1693579693825,0.00432,25805.0,25803.0,0.56589172]
[1693579694039,0.04432,25804.0,25803.0,0.26589172]
[1693579694253,0.00432,25803.0,25802.0,0.2531]
[1693579694467,0.53858678,25807.0,25801.0,0.155063]
[1693579694468,0.06432,25802.0,25801.0,0.155063]
[1693579696417,0.06732,25802.0,25801.0,0.192063]
[1693579696630,0.07666364,25802.0,25801.0,0.183063]
[1693579696843,0.10666364,25802.0,25801.0,0.185063]
[1693579697312,0.09832,25802.0,25801.0,0.185063]
[1693579697529,0.09432,25802.0,25801.0,0.157063]
[1693579697740,0.10353378,25802.0,25801.0,0.157063]
[1693579697950,0.13653378,25802.0,25801.0,0.160063]
[1693579698163,0.51440678,25802.0,25801.0,0.160063]
[1693579698378,0.51440678,25802.0,25801.0,0.005]
[1693579698590,0.51440678,25802.0,25801.0,0.003]
[1693579698591,0.49435152,25802.0,25801.0,0.003]
[1693579698802,0.50140678,25802.0,25801.0,0.004]
[1693579699011,0.49210446,25802.0,25801.0,0.003]
[1693579699434,0.10201768,25802.0,25801.0,0.002]
[1693579699657,0.04432,25798.0,25795.0,0.2547]
[1693579699870,0.11967913,25798.0,25796.0,0.38708678]
[1693579700086,0.04432,25798.0,25796.0,0.38708678]
[1693579700720,0.04432,25798.0,25795.0,0.2547]
[1693579701621,0.04432,25798.0,25796.0,0.20793331]
[1693579702056,0.00432,25800.0,25796.0,0.38708678]
[1693579702310,0.00632,25798.0,25796.0,0.54192149]
[1693579702520,0.00432,25798.0,25796.0,0.38708678]
[1693579702730,0.00432,25797.0,25796.0,0.64462241]
[1693579702941,0.00432,25797.0,25796.0,0.08732]
[1693579703153,0.01300156,25797.0,25796.0,0.08732]
[1693579703370,0.01300156,25797.0,25796.0,0.04432]
[1693579703621,0.07300156,25797.0,25796.0,0.07132]
[1693579703826,0.07300156,25797.0,25796.0,0.10732]
[1693579704253,0.07300156,25797.0,25796.0,0.08032]
[1693579704461,0.06832,25797.0,25796.0,0.10732]
[1693579705108,0.45540678,25797.0,25796.0,0.07132]
[1693579705320,0.45840678,25797.0,25796.0,0.10732]
[1693579705530,0.45840678,25797.0,25796.0,0.027]
[1693579705531,0.97254678,25797.0,25796.0,0.027]
[1693579705742,1.20244678,25797.0,25796.0,0.027]
[1693579705954,0.04432,25790.0,25789.0,0.0019626]
[1693579706176,0.13967913,25790.0,25789.0,0.0019626]
[1693579706391,0.52676591,25790.0,25789.0,0.0019626]
[1693579706608,0.95246591,25790.0,25789.0,0.0019626]
[1693579706828,0.88605626,25790.0,25789.0,0.0019626]
[1693579707269,0.74551041,25790.0,25789.0,0.0019626]
[1693579707513,0.88227041,25790.0,25789.0,0.0019626]
[1693579707748,1.41951041,25790.0,25789.0,0.0049626]
[1693579707996,0.2,25784.0,25783.0,0.01092747]
[1693579708214,0.2,25784.0,25773.0,0.006]
[1693579708215,0.20432,25776.0,25773.0,0.006]